{"text_format":"1","workbook":"xlsx","n_sheets":1,"sheets":["Sheet3"],"not_rendered":{"charts":0,"images":0,"macros":1,"external_links":1,"defined_names":1,"comments":0,"pivot_tables":0},"unopened":[],"bounds":{"document_bytes":16777216,"sheet_cells":100000,"rows_first":2000,"rows_last":500,"rows_between":2000,"halvings":0,"cell_chars":16384,"cell_head_chars":4096},"cells_cut":0,"cells_raw":0,"read":"whole","date_system":"1900"}

{"sheet":"Sheet3","index":0,"n_rows":55,"n_cols":27,"rows_kept":55,"cut":false,"hidden":false,"merged":[]}
["Grades","School Name","Subject","A","B","B+","C","C+","D","E","F","Average","#student",null,"Count","Grades","School Name","Subject","A","B","B+","C","C+","D","E","F","Average"]
["Grade 1","Al Sela","Arabic Language",14,2,null,3,null,null,3,7,86.36,{"$f":"IF(SUM(D2:K2)=0,\"\",SUM(D2:K2))","v":29},null,4,"Grade 1","Al Sela","Arabic Language",52,26,0,9,0,3,9,24,15.38]
["Grade 1","Al Sela","Arabic Language",10,2,null,2,null,3,3,7,84.87,{"$f":"IF(SUM(D3:K3)=0,\"\",SUM(D3:K3))","v":27},null,4,"Grade 2","Al Sela","Arabic Language",47,24,0,5,0,3,6,2,10.88]
["Grade 1","Al Sela","Arabic Language",14,7,null,1,null,null,null,8,89.86,30,null,2,"Grade 1","Al Sela","Design and Technology",36,5,0,3,0,0,0,0,5.5]
["Grade 2","Al Sela","Arabic Language",13,3,null,null,null,1,3,2,87.35,22,null,4,"Grade 2","Al Sela","Design and Technology",55,12,0,10,0,2,2,4,10.63]
["Grade 2","Al Sela","Arabic Language",9,10,null,2,null,1,null,null,88.5,22,null,3,"Grade 3","Al Sela","Design and Technology",21,10,0,8,0,3,8,16,8.25]
["Grade 2","Al Sela","Arabic Language",12,6,null,null,null,1,3,null,84.91,22,null,3,"Grade 1","Al Sela","Drama",60,7,0,0,0,0,0,0,8.3800000000000008]
["Grade 2","Al Sela","Arabic Language",13,5,null,3,null,null,null,null,88.81,21,null,4,"Grade 2","Al Sela","Drama",81,4,0,0,0,0,0,0,10.63]
["Grade 1","Al Sela","Design and Technology",17,2,null,3,null,null,null,null,90.32,22,null,3,"Grade 3","Al Sela","Drama",66,0,0,0,0,0,0,0,8.25]
["Grade 1","Al Sela","Arabic Language",14,15,null,3,null,null,3,2,90.65,37,null,3,"Grade 1","Al Abbas","Arabic Language",41,11,0,6,0,3,6,0,8.3800000000000008]
["Grade 1","Al Sela","Design and Technology",19,3,null,null,null,null,null,null,93.59,22,null,4,"Grade 2","Al Abbas","Arabic Language",47,24,0,5,0,3,6,0,10.63]
["Grade 2","Al Sela","Design and Technology",11,2,null,3,null,null,1,3,80.75,20,null,3,"Grade 1","Al Abbas","Design and Technology",53,7,0,7,0,0,0,0,8.3800000000000008]
["Grade 2","Al Sela","Design and Technology",18,2,null,2,null,null,null,null,92.73,22,null,4,"Grade 2","Al Abbas","Design and Technology",55,12,0,10,0,2,2,4,10.63]
["Grade 2","Al Sela","Design and Technology",11,7,null,4,null,null,null,null,87.68,22,null,3,"Grade 3","Al Abbas","Design and Technology",21,10,0,8,0,3,8,16,8.25]
["Grade 2","Al Sela","Design and Technology",15,1,null,1,null,2,1,1,85.71,21,null,3,"Grade 1","Al Abbas","Drama",60,7,0,0,0,0,0,0,8.3800000000000008]
["Grade 3","Al Sela","Design and Technology",1,5,null,6,null,2,2,6,62.27,22,null,4,"Grade 2","Al Abbas","Drama",81,4,0,0,0,0,0,0,10.63]
["Grade 3","Al Sela","Design and Technology",12,3,null,null,null,null,2,5,77.41,22,null,3,"Grade 3","Al Abbas","Drama",66,0,0,0,0,0,0,0,8.25]
["Grade 3","Al Sela","Design and Technology",8,2,null,2,null,1,4,5,71.45,22]
["Grade 1","Al Sela","Drama",19,3,null,null,null,null,null,null,96.82,22]
["Grade 1","Al Sela","Drama",19,4,null,null,null,null,null,null,94.78,23]
["Grade 1","Al Sela","Drama",22,null,null,null,null,null,null,null,99.77,22]
["Grade 2","Al Sela","Drama",20,null,null,null,null,null,null,null,97,20]
["Grade 2","Al Sela","Drama",22,null,null,null,null,null,null,null,97.27,22]
["Grade 2","Al Sela","Drama",22,null,null,null,null,null,null,null,95.23,22]
["Grade 2","Al Sela","Drama",17,4,null,null,null,null,null,null,91.43,21]
["Grade 3","Al Sela","Drama",22,null,null,null,null,null,null,null,95.32,22]
["Grade 3","Al Sela","Drama",22,null,null,null,null,null,null,null,95.18,22]
["Grade 3","Al Sela","Drama",22,null,null,null,null,null,null,null,95.18,22]
["Grade 1","Al Abbas","Arabic Language",14,2,null,3,null,null,3,null,86.36,{"$f":"IF(SUM(D29:K29)=0,\"\",SUM(D29:K29))","v":22}]
["Grade 1","Al Abbas","Arabic Language",13,2,null,2,null,3,3,null,84.87,{"$f":"IF(SUM(D30:K30)=0,\"\",SUM(D30:K30))","v":23}]
["Grade 1","Al Abbas","Arabic Language",14,7,null,1,null,null,null,null,89.86,22]
["Grade 2","Al Abbas","Arabic Language",13,3,null,null,null,1,3,null,87.35,20]
["Grade 2","Al Abbas","Arabic Language",9,10,null,2,null,1,null,null,88.5,22]
["Grade 2","Al Abbas","Arabic Language",12,6,null,null,null,1,3,null,84.91,22]
["Grade 2","Al Abbas","Arabic Language",13,5,null,3,null,null,null,null,88.81,21]
["Grade 1","Al Abbas","Design and Technology",17,2,null,3,null,null,null,null,90.32,22]
["Grade 1","Al Abbas","Design and Technology",17,2,null,4,null,null,null,null,90.65,23]
["Grade 1","Al Abbas","Design and Technology",19,3,null,null,null,null,null,null,93.59,22]
["Grade 2","Al Abbas","Design and Technology",11,2,null,3,null,null,1,3,80.75,20]
["Grade 2","Al Abbas","Design and Technology",18,2,null,2,null,null,null,null,92.73,22]
["Grade 2","Al Abbas","Design and Technology",11,7,null,4,null,null,null,null,87.68,22]
["Grade 2","Al Abbas","Design and Technology",15,1,null,1,null,2,1,1,85.71,21]
["Grade 3","Al Abbas","Design and Technology",1,5,null,6,null,2,2,6,62.27,22]
["Grade 3","Al Abbas","Design and Technology",12,3,null,null,null,null,2,5,77.41,22]
["Grade 3","Al Abbas","Design and Technology",8,2,null,2,null,1,4,5,71.45,22]
["Grade 1","Al Abbas","Drama",19,3,null,null,null,null,null,null,96.82,22]
["Grade 1","Al Abbas","Drama",19,4,null,null,null,null,null,null,94.78,23]
["Grade 1","Al Abbas","Drama",22,null,null,null,null,null,null,null,99.77,22]
["Grade 2","Al Abbas","Drama",20,null,null,null,null,null,null,null,97,20]
["Grade 2","Al Abbas","Drama",22,null,null,null,null,null,null,null,97.27,22]
["Grade 2","Al Abbas","Drama",22,null,null,null,null,null,null,null,95.23,22]
["Grade 2","Al Abbas","Drama",17,4,null,null,null,null,null,null,91.43,21]
["Grade 3","Al Abbas","Drama",22,null,null,null,null,null,null,null,95.32,22]
["Grade 3","Al Abbas","Drama",22,null,null,null,null,null,null,null,95.18,22]
["Grade 3","Al Abbas","Drama",22,null,null,null,null,null,null,null,95.18,22]